bitfinex/quotes_SOLUSD_20250207
["timestamp","ask_amount","ask_price","bid_price","bid_amount"]
[1738944731324,37.89087979,197.38,197.3,57.89087979]
[1738944731515,37.89087979,197.37,197.3,42.95907979]
[1738944731710,61.09087979,197.37,197.3,42.95907979]
[1738944732024,23.2,197.37,197.31,37.89087979]
[1738944732328,37.89087979,197.36,197.29,42.95947979]
[1738944732504,61.09087979,197.35,197.27,37.89087979]
[1738944733107,37.89087979,197.32,197.25,37.89087979]
[1738944733325,37.89087979,197.29,197.22,37.89087979]
[1738944733529,37.89087979,197.27,197.2,37.89087979]
[1738944733917,37.89087979,197.27,197.21,5.0707]
[1738944734522,37.89087979,197.25,197.18,42.96237979]
[1738944735020,23.2,197.26,197.21,37.89087979]
[1738944735228,23.2,197.26,197.23,37.89087979]
[1738944735424,23.2,197.33,197.25,38.01636979]
[1738944735729,23.2,197.35,197.3,37.89087979]
[1738944736027,23.2,197.35,197.28,0.12549]
[1738944736230,23.2,197.39,197.28,0.12549]
[1738944736436,23.2,197.39,197.3,20.0]
[1738944736614,23.2,197.38,197.31,0.12549]
[1738944737017,23.2,197.38,197.32,37.89087979]
[1738944737415,37.89087979,197.37,197.3,37.89087979]
[1738944737718,37.89087979,197.35,197.28,37.89087979]
[1738944738036,23.2,197.34,197.3,37.89087979]
[1738944738233,23.2,197.4,197.33,37.89087979]
[1738944738412,23.2,197.41,197.38,37.89087979]
[1738944738612,23.2,197.44,197.37,37.89087979]
[1738944738813,23.2,197.43,197.38,37.89087979]
[1738944739046,23.2,197.43,197.42,37.89087979]
[1738944739227,23.2,197.46,197.42,37.89087979]
[1738944739536,37.89087979,197.45,197.38,37.89087979]
[1738944739750,37.89087979,197.43,197.35,37.89087979]
[1738944739946,23.2,197.42,197.35,37.89087979]
[1738944740418,61.09087979,197.42,197.34,37.89087979]
[1738944740620,23.2,197.41,197.4,37.89087979]
[1738944740930,23.2,197.46,197.4,37.89087979]
[1738944741150,23.23,197.47,197.42,37.89087979]
[1738944741440,0.03,197.47,197.46,37.89087979]
[1738944742131,0.03,197.47,197.46,42.95517979]
[1738944742539,0.03,197.47,197.4,57.89087979]
[1738944742836,23.2,197.46,197.4,57.89087979]
[1738944743140,23.2,197.46,197.42,37.89087979]
[1738944743340,0.03,197.47,197.4,37.89087979]
[1738944743341,23.2,197.45,197.4,37.89087979]
[1738944743512,23.2,197.45,197.39,37.89087979]
[1738944743714,23.2,197.45,197.44,37.89087979]
[1738944743934,0.03,197.47,197.44,37.89087979]
[1738944744242,0.03,197.47,197.46,42.95517979]
[1738944744640,0.03,197.47,197.46,43.20615979]
[1738944745219,0.0001,197.49,197.48,20.25098]
[1738944745441,0.0001,197.49,197.48,58.14185979]
[1738944745650,0.0001,197.52,197.49,0.25098]
[1738944745945,0.0001,197.52,197.51,38.01636979]
[1738944746113,0.0001,197.52,197.51,42.95387979]
[1738944746729,0.0001,197.52,197.5,37.89087979]
[1738944746947,0.0001,197.52,197.48,3.73785129]
[1738944747131,0.0001,197.52,197.48,46.69243108]
[1738944747438,0.0001,197.52,197.5,37.89087979]
[1738944747645,0.0001,197.52,197.48,3.73785129]
[1738944747817,0.0001,197.52,197.42,5.0653]
[1738944748019,23.2,197.51,197.42,5.0653]
[1738944748228,23.2,197.51,197.37,18.7326]
[1738944748426,23.2,197.5,197.4,20.0]
[1738944748646,23.2,197.5,197.43,37.89087979]
[1738944748943,37.89087979,197.45,197.38,41.62973367]
[1738944749252,37.89087979,197.46,197.39,37.89087979]
[1738944749541,1.5178,197.49,197.41,0.25098]
[1738944749926,1.5178,197.49,197.4,20.0]
[1738944750329,1.5178,197.49,197.41,5.0655]
[1738944750532,39.40867979,197.49,197.41,42.95637979]
[1738944750738,1.5178,197.49,197.44,20.0]
[1738944750918,23.2,197.5,197.45,37.89087979]
[1738944751317,23.2,197.5,197.47,37.89087979]
[1738944751926,23.2,197.5,197.46,37.89087979]
[1738944752131,37.89087979,197.49,197.41,42.95637979]
[1738944752335,61.09087979,197.5,197.42,37.89087979]
[1738944752524,23.2,197.5,197.44,37.89087979]
[1738944752725,23.2,197.5,197.46,37.89087979]
[1738944753122,23.2,197.5,197.43,37.89087979]
[1738944753317,23.2,197.5,197.46,37.89087979]
[1738944753517,23.2,197.5,197.41,5.0655]
[1738944753518,23.2,197.5,197.44,57.89087979]
[1738944753945,23.2,197.5,197.45,37.89087979]
[1738944754328,23.2,197.5,197.44,20.0]
[1738944754537,24.14963218,197.49,197.37,37.89087979]
[1738944754833,37.89087979,197.44,197.36,37.89087979]
[1738944755026,37.89087979,197.42,197.34,37.89087979]
[1738944755346,61.09087979,197.43,197.36,37.89087979]
[1738944756044,81.3,197.48,197.42,37.89087979]
[1738944756249,81.3,197.48,197.43,37.89087979]
[1738944756451,81.3,197.48,197.44,5.0648]
[1738944757250,81.3,197.48,197.39,0.25098]
[1738944757251,81.3,197.48,197.42,37.89087979]
[1738944757427,81.3,197.48,197.4,37.89087979]
[1738944757428,119.19087979,197.48,197.4,37.89087979]
[1738944757627,37.89087979,197.47,197.4,37.89087979]
[1738944757829,37.89087979,197.47,197.38,42.95717979]
[1738944758138,37.89087979,197.39,197.31,37.89087979]
[1738944758446,37.89087979,197.39,197.27,6.4561]
[1738944758447,37.89087979,197.35,197.28,5.0689]
[1738944758952,37.89087979,197.35,197.26,42.96007979]
[1738944758953,37.89087979,197.34,197.26,42.96007979]
[1738944759134,37.89087979,197.32,197.24,59.13873389]
[1738944759330,37.89087979,197.27,197.24,7.74111662]
[1738944759742,37.89087979,197.29,197.24,7.74111662]
[1738944759926,37.89087979,197.28,197.24,7.74111662]
[1738944760265,37.89087979,197.28,197.24,7.80411662]
[1738944760631,37.89087979,197.27,197.24,7.80411662]
[1738944761026,37.89087979,197.25,197.24,7.80411662]
[1738944761242,37.89087979,197.25,197.24,0.063]
[1738944761454,51.30272832,197.25,197.24,0.063]
[1738944761830,37.89087979,197.25,197.24,0.063]
[1738944762036,39.48557979,197.28,197.24,0.063]
[1738944762238,37.89087979,197.32,197.24,43.02377979]
[1738944762442,37.89087979,197.34,197.26,37.89087979]
[1738944762649,1.5941,197.35,197.28,37.89087979]
[1738944762832,1.5941,197.35,197.31,37.89087979]
[1738944763030,6.6569,197.39,197.33,37.89087979]
[1738944763251,13.41184853,197.38,197.31,37.89087979]
[1738944763455,37.89087979,197.34,197.26,5.0692]
[1738944763631,37.89087979,197.32,197.26,5.0692]
[1738944763831,6.6569,197.39,197.26,5.0692]
[1738944764030,6.6569,197.39,197.27,0.25098]
[1738944764231,0.95019933,197.38,197.27,0.25098]
[1738944764446,13.41184853,197.37,197.26,5.0692]
[1738944764656,13.41184853,197.35,197.24,0.063]
[1738944764859,37.89087979,197.33,197.26,37.89087979]
[1738944765052,37.89087979,197.35,197.28,37.89087979]
[1738944765256,6.6569,197.39,197.26,0.25098]
[1738944765257,37.89087979,197.37,197.29,37.89087979]
[1738944765555,37.89087979,197.43,197.36,37.89087979]
[1738944765756,23.2,197.42,197.37,37.89087979]
[1738944765962,23.2,197.43,197.38,37.89087979]
[1738944766267,61.09087979,197.45,197.38,37.89087979]
[1738944766559,23.2,197.45,197.38,37.89087979]
[1738944766868,23.2,197.45,197.39,42.95697979]
[1738944767053,61.09087979,197.45,197.39,5.0661]
[1738944767364,61.09087979,197.45,197.31,37.89087979]
[1738944767365,37.89087979,197.4,197.31,37.89087979]
[1738944767540,61.09087979,197.39,197.32,37.89087979]
[1738944767944,23.2,197.39,197.32,37.89087979]
[1738944768152,61.09087979,197.39,197.32,37.89087979]
[1738944768351,61.09087979,197.39,197.33,5.0676]
[1738944768753,37.89087979,197.4,197.33,5.0676]
[1738944768956,61.09087979,197.41,197.33,5.0676]
[1738944769162,37.89087979,197.4,197.33,5.0676]
[1738944769736,37.89087979,197.39,197.3,37.89087979]
[1738944769963,37.89087979,197.34,197.26,37.89087979]
[1738944770364,37.89087979,197.34,197.29,20.0]
[1738944770942,23.2,197.37,197.3,37.89087979]
[1738944771138,61.09087979,197.41,197.33,37.89087979]
[1738944771358,37.89087979,197.39,197.31,37.89087979]
[1738944772468,37.89087979,197.39,197.32,42.95877979]
[1738944772764,42.95697979,197.39,197.32,5.0679]
[1738944772964,37.89087979,197.37,197.32,5.0679]
[1738944773365,61.09087979,197.39,197.32,5.0679]
[1738944773568,23.2,197.39,197.34,37.89087979]
[1738944774066,23.2,197.4,197.35,37.89087979]
[1738944774377,23.2,197.4,197.36,5.0668]
[1738944774545,37.89087979,197.39,197.31,37.95387979]
[1738944774745,23.2,197.38,197.32,42.95877979]
[1738944774952,23.2,197.38,197.32,5.0679]
[1738944775173,61.09087979,197.38,197.32,5.0679]
[1738944775472,37.89087979,197.38,197.32,5.0679]
[1738944775679,37.89087979,197.33,197.31,0.063]
[1738944775881,37.89087979,197.35,197.31,0.063]
[1738944776056,37.89087979,197.35,197.31,5.131]
[1738944776257,23.2,197.37,197.31,5.131]
[1738944776258,37.89087979,197.34,197.31,0.063]
[1738944776674,37.89087979,197.35,197.31,0.063]
[1738944776882,23.2,197.36,197.33,37.89087979]
[1738944777876,23.2,197.41,197.35,37.89087979]
[1738944778182,23.2,197.42,197.36,37.89087979]
[1738944779485,23.2,197.42,197.37,5.0666]
[1738944779866,37.89087979,197.39,197.32,42.95877979]
[1738944780066,37.89087979,197.38,197.32,5.0679]
[1738944780384,41.67714853,197.42,197.32,17.7376]
[1738944780385,23.2,197.42,197.32,17.7376]
[1738944780585,23.2,197.45,197.35,20.0]
[1738944780888,23.2,197.44,197.35,20.0]
[1738944781059,23.2,197.44,197.32,5.0679]
[1738944781060,14.36190423,197.43,197.32,5.0679]
[1738944781260,0.12549,197.42,197.31,0.063]
[1738944781461,6.66809,197.46,197.31,0.063]
[1738944781462,13.41184853,197.35,197.31,0.063]
[1738944781680,37.89087979,197.32,197.31,0.063]
[1738944782267,37.89087979,197.33,197.31,0.063]
[1738944782485,37.89087979,197.32,197.31,0.063]
[1738944782674,38.84143584,197.32,197.31,0.063]
[1738944782871,37.89087979,197.32,197.31,0.063]
[1738944783860,51.30272832,197.32,197.31,0.063]
[1738944784064,56.37062832,197.32,197.31,0.063]
[1738944784372,56.49611832,197.32,197.31,0.063]
[1738944784563,13.53733853,197.31,197.24,0.063]
[1738944784758,37.89087979,197.25,197.24,0.063]
[1738944784963,51.30272832,197.25,197.24,0.063]
[1738944785373,37.89087979,197.25,197.24,0.063]
[1738944785565,7.4271,197.33,197.24,0.063]
[1738944785566,37.89087979,197.27,197.24,0.063]
[1738944786372,37.89087979,197.29,197.24,0.063]
[1738944786582,37.89087979,197.3,197.24,0.063]
[1738944786787,37.89087979,197.26,197.24,0.063]
[1738944787067,52.37902038,197.25,197.24,0.063]
[1738944787684,57.44872038,197.25,197.24,0.063]
[1738944788089,57.57421038,197.25,197.24,0.063]
[1738944788290,33.66282853,197.22,197.21,0.063]
[1738944788492,0.12549,197.2,197.12,0.063]
[1738944788674,37.89087979,197.14,197.12,0.063]
[1738944788878,37.56335572,197.13,197.12,0.063]
[1738944789290,0.12549,197.11,197.02,15.60319039]
[1738944789505,37.89087979,197.05,197.02,0.03]
[1738944789810,37.89087979,197.06,197.02,0.03]
[1738944789970,37.89087979,197.04,197.02,0.03]
[1738944790179,61.09087979,197.03,197.02,0.03]
[1738944790497,23.2,197.03,197.02,0.03]
[1738944791102,61.09087979,197.03,197.02,0.03]
[1738944791977,51.30272832,197.03,197.02,0.03]
[1738944792510,90.44458811,197.03,197.02,0.03]
[1738944792675,7.02701458,197.04,197.01,0.063]
[1738944792676,95.52018811,197.02,197.01,0.063]
[1738944793271,96.47246166,197.02,197.01,0.063]
[1738944793511,95.47246166,197.02,197.01,0.063]
[1738944793671,57.45609187,197.02,197.01,0.063]
[1738944793871,52.25500187,197.02,197.01,0.063]
[1738944794072,90.14588166,197.02,197.01,0.063]
[1738944794296,91.39686166,197.02,197.01,0.063]
[1738944794503,52.25500187,197.02,197.01,0.063]
[1738944794707,37.89087979,197.02,197.01,0.063]
[1738944795074,52.25472921,197.02,197.01,0.063]
[1738944795690,52.25472921,197.02,196.91,0.03]
[1738944795691,0.12549,196.97,196.91,0.03]
[1738944795907,13.41184853,196.95,196.91,0.03]
[1738944796073,6.02953331,196.96,196.91,0.03]
[1738944796074,13.41184853,196.93,196.91,0.03]
[1738944796279,75.45525501,196.92,196.91,0.03]
[1738944796977,62.04340648,196.92,196.91,0.03]
[1738944797179,37.89087979,196.92,196.91,0.03]
[1738944797380,38.84336624,196.92,196.91,0.03]
[1738944797614,52.25521477,196.92,196.91,0.03]
[1738944798116,38.84336624,196.92,196.91,0.03]
[1738944798278,37.89087979,196.93,196.91,0.03]
[1738944798480,37.89087979,196.92,196.91,0.03]
[1738944798781,52.25518043,196.92,196.91,0.03]
[1738944799577,51.30272832,196.92,196.91,0.03]
[1738944799776,37.89087979,196.95,196.91,0.03]
[1738944799991,37.89087979,196.96,196.91,0.03]
[1738944800202,37.89087979,196.97,196.91,0.03]
[1738944800683,37.89087979,196.96,196.91,0.03]
[1738944800887,37.89087979,196.95,196.91,0.03]
[1738944801410,37.89087979,196.97,196.91,0.03]
[1738944801704,23.2,196.97,196.94,5.0776]
[1738944802311,37.89087979,196.98,196.94,5.0776]
[1738944802613,37.89087979,196.95,196.92,5.0779]
[1738944802801,61.09087979,196.94,196.91,0.03]
[1738944803181,37.89087979,196.93,196.91,0.03]
[1738944803377,23.2,196.94,196.91,5.1084]
[1738944803795,23.2,196.94,196.91,0.03]
[1738944804074,61.09087979,196.94,196.91,0.03]
[1738944804504,61.09087979,196.93,196.91,0.03]
[1738944804879,61.09087979,196.92,196.91,0.03]
[1738944805083,0.12549,196.9,196.84,0.03]
[1738944805307,13.41184853,196.88,196.84,0.03]
[1738944805513,37.89087979,196.85,196.84,0.03]
[1738944806084,37.89087979,196.86,196.84,0.03]
[1738944806279,37.89087979,196.85,196.84,0.03]
[1738944807092,51.42821832,196.85,196.84,0.03]
[1738944807311,52.50667848,196.85,196.84,0.03]
[1738944807889,38.84384995,196.85,196.84,0.03]
[1738944808091,37.89087979,196.89,196.84,0.03]
[1738944808282,37.89087979,196.86,196.84,0.03]
[1738944808486,13.41184853,196.87,196.84,0.03]
[1738944808888,37.89087979,196.87,196.84,0.03]
[1738944809439,37.89087979,196.86,196.84,0.03]
[1738944809620,38.84356306,196.85,196.84,0.03]
[1738944809821,75.45541159,196.85,196.84,0.03]
[1738944810324,61.09087979,196.85,196.84,0.03]
[1738944810818,14.36466939,196.87,196.84,0.03]
[1738944810819,37.89087979,196.86,196.84,0.03]
[1738944811014,37.89087979,196.88,196.84,0.03]
[1738944811214,37.89087979,196.86,196.84,0.03]
[1738944811407,37.89087979,196.85,196.84,0.03]
[1738944811586,51.30272832,196.85,196.84,0.03]
[1738944812311,37.89087979,196.85,196.84,0.03]
[1738944812524,37.89087979,196.86,196.84,0.03]
[1738944813026,37.89087979,196.89,196.84,0.03]
[1738944813241,37.89087979,196.9,196.84,0.03]
[1738944813438,6.2443,196.93,196.84,0.03]
[1738944813439,37.89087979,196.94,196.86,37.89087979]
[1738944813609,37.89087979,196.93,196.85,37.89087979]
[1738944813808,37.89087979,196.91,196.85,5.08]
[1738944814010,37.89087979,196.89,196.85,5.08]
[1738944814215,37.89087979,196.87,196.85,5.08]
[1738944814510,37.89087979,196.89,196.85,5.08]
[1738944814712,37.89087979,196.9,196.85,5.08]
[1738944814928,0.9525023,196.94,196.85,5.08]
[1738944815113,6.1326,196.98,196.89,37.89087979]
[1738944815114,37.89087979,196.96,196.89,37.89087979]
[1738944815333,37.89087979,196.96,196.88,37.89087979]
[1738944815511,37.89087979,196.94,196.87,37.89087979]
[1738944815714,37.89087979,196.94,196.86,37.89087979]
[1738944816128,37.89087979,196.94,196.87,5.0794]
[1738944816330,61.09087979,196.95,196.88,37.89087979]
[1738944816519,61.09087979,196.97,196.9,37.89087979]
[1738944816743,23.2,196.97,196.9,37.89087979]
[1738944817251,23.2,196.96,196.9,37.89087979]
[1738944817414,61.09087979,196.96,196.88,37.89087979]
[1738944817749,13.41184853,197.0,196.87,17.7781]
[1738944817750,37.89087979,196.92,196.87,17.7781]
[1738944818038,37.89087979,196.93,196.87,12.6987]
[1738944818215,37.89087979,196.94,196.87,50.58957979]
[1738944818621,23.2,196.96,196.89,37.89087979]
[1738944818919,23.2,196.96,196.92,37.89087979]
[1738944819109,81.3,197.01,196.9,20.0]
[1738944819110,37.89087979,196.98,196.91,37.89087979]
[1738944819510,61.09087979,196.99,196.91,37.89087979]
[1738944819744,37.89087979,196.97,196.9,57.89087979]
[1738944820038,0.03,196.97,196.91,5.0784]
[1738944820246,0.03,196.97,196.93,37.89087979]
[1738944820543,0.03,196.97,196.91,55.66537979]
[1738944820752,37.89087979,196.95,196.91,5.0784]
[1738944821324,37.89087979,196.95,196.88,37.89087979]
[1738944821325,37.89087979,196.93,196.88,5.0792]
[1738944821655,37.89087979,196.89,196.85,5.08]
[1738944822038,37.89087979,196.89,196.84,12.7305]
[1738944822240,61.09087979,196.88,196.84,0.03]
[1738944822556,37.89087979,196.87,196.84,0.03]
[1738944822759,37.89087979,196.85,196.84,0.03]
[1738944822933,52.2554717,196.85,196.84,0.03]
[1738944823345,37.89087979,196.85,196.84,0.03]
[1738944823663,23.2,196.87,196.84,0.03]
[1738944824539,23.2,196.91,196.86,37.89087979]
[1738944824741,23.2,196.93,196.89,37.89087979]
[1738944825146,23.2,196.95,196.89,37.89087979]
[1738944825359,23.2,196.96,196.92,37.89087979]
[1738944825663,0.03,196.97,196.94,37.89087979]
[1738944826351,0.03,196.97,196.95,5.0774]
[1738944826553,0.03,196.97,196.95,42.96827979]
[1738944826756,0.03,196.97,196.95,5.0774]
[1738944827240,62.04298567,196.96,196.86,5.0797]
[1738944827438,23.2,196.95,196.86,5.0797]
[1738944827640,37.89087979,196.91,196.86,5.0797]
[1738944827954,37.89087979,196.87,196.84,5.1102]
[1738944828335,23.2,196.89,196.84,43.00107979]
[1738944828562,23.2,196.89,196.84,17.8108]
[1738944829057,61.09087979,196.89,196.84,5.1102]
[1738944829262,23.2,196.89,196.84,17.8108]
[1738944829928,82.8732,196.96,196.87,20.0]
[1738944829929,37.89087979,196.93,196.87,20.0]
[1738944830128,82.8732,196.96,196.88,37.89087979]
[1738944830129,61.09087979,196.95,196.88,37.89087979]
[1738944830342,37.89087979,196.93,196.88,5.0792]
[1738944830538,37.89087979,196.93,196.85,3.75354694]
[1738944830539,37.89087979,196.92,196.85,3.75354694]
[1738944830747,37.89087979,196.9,196.85,3.75354694]
[1738944831163,23.2,196.91,196.85,46.72432673]
[1738944831343,23.2,196.95,196.89,37.89087979]
[1738944831854,23.2,196.95,196.88,57.89087979]
[1738944832160,0.03,196.91,196.88,20.0]
[1738944832461,0.03,196.91,196.87,5.0794]
[1738944832663,0.03,196.91,196.87,42.97027979]
[1738944832860,0.03,196.91,196.89,37.89087979]
[1738944833060,0.03,196.91,196.87,55.66897979]
[1738944833243,0.03,196.91,196.87,17.7781]
[1738944833567,0.03,196.91,196.88,3.75354694]
[1738944833938,0.03,196.91,196.9,20.0]
[1738944834148,0.03,196.91,196.9,57.89087979]
[1738944834439,0.03,196.91,196.9,62.96957979]
[1738944834843,0.03,196.91,196.9,66.72312673]
[1738944835264,0.03,196.97,196.9,79.41992673]
[1738944835469,0.03,196.97,196.93,37.89087979]
[1738944836151,0.03,196.97,196.95,37.89087979]
[1738944836463,0.03,196.97,196.95,25.0772]
[1738944836764,0.03,196.97,196.96,20.0]
[1738944836934,0.03,196.97,196.96,57.89087979]
[1738944837145,0.03,196.97,196.96,20.0]
[1738944837776,23.2,197.05,196.96,61.64442673]
[1738944837950,23.2,197.09,197.01,37.89087979]
[1738944838276,39.47447979,197.1,197.03,37.89087979]
[1738944838277,23.2,197.08,197.03,37.89087979]
[1738944838438,23.2,197.08,196.97,2.25098]
[1738944838439,23.2,197.1,197.05,37.89087979]
[1738944838633,0.98162094,197.15,197.04,17.7628]
[1738944838634,37.89087979,197.13,197.06,37.89087979]
[1738944838854,23.2,197.14,197.06,37.89087979]
[1738944839063,37.92087979,197.15,197.06,37.89087979]
[1738944839064,23.2,197.13,197.06,37.89087979]
[1738944839483,23.2,197.13,197.07,3.75354694]
[1738944839671,61.09087979,197.13,197.07,3.75354694]
[1738944840138,61.09087979,197.13,197.08,5.074]
[1738944840664,37.89087979,197.11,197.07,3.75354694]
[1738944841042,23.2,197.13,197.07,46.71862673]
[1738944841352,37.89087979,197.09,197.03,5.0753]
[1738944841554,13.41184853,197.12,197.03,5.0753]
[1738944841555,61.09087979,197.08,197.03,5.0753]
[1738944841871,23.2,197.08,197.03,5.0753]
[1738944842846,37.89087979,197.04,196.96,12.6929]
[1738944843049,37.89087979,197.0,196.91,42.96927979]
[1738944843765,37.89087979,197.0,196.94,20.0]
[1738944843968,20.421879,196.99,196.92,12.6948]
[1738944844275,37.89087979,196.96,196.92,3.76380276]
[1738944844570,20.421879,196.95,196.92,3.76380276]
[1738944844951,20.421879,196.94,196.92,3.76380276]
[1738944845170,58.31275879,196.93,196.92,3.76380276]
[1738944846043,20.421879,196.93,196.92,3.76380276]
[1738944846367,20.421879,196.93,196.92,8.84200276]
[1738944846566,20.421879,196.93,196.92,3.76380276]
[1738944846777,37.89087979,196.93,196.92,3.76380276]
[1738944846962,37.89087979,196.93,196.89,5.0787]
[1738944847274,37.89087979,196.9,196.84,0.03]
[1738944847485,37.89087979,196.86,196.84,0.03]
[1738944847782,21.9,196.85,196.84,0.03]
[1738944848075,21.9,196.85,196.84,5.1102]
[1738944848277,21.9,196.85,196.84,0.03]
[1738944848483,21.9,196.85,196.84,20.03]
[1738944848651,37.89087979,196.88,196.84,20.03]
[1738944848848,59.79087979,196.89,196.84,20.03]
[1738944849983,21.9,196.89,196.84,20.03]
[1738944850277,21.9,196.92,196.89,5.0789]
[1738944850452,59.79087979,196.95,196.89,5.0789]
[1738944850866,37.89087979,196.93,196.89,5.0789]
[1738944851066,37.89087979,196.91,196.85,5.08]
[1738944851364,21.9,196.9,196.85,5.08]
[1738944851773,37.89087979,196.89,196.85,5.08]
[1738944852173,21.9,196.88,196.85,5.08]
[1738944852384,21.9,196.88,196.84,0.03]
[1738944852560,21.9,196.88,196.87,37.89087979]
[1738944852763,147.12048641,196.95,196.87,37.89087979]
[1738944852962,37.89087979,196.92,196.84,0.03]
[1738944853402,37.89087979,196.88,196.84,3.7992854]
[1738944853689,21.9,196.87,196.84,3.7992854]
[1738944854388,21.9,196.86,196.84,8.8793854]
[1738944855366,21.9,196.86,196.84,5.1101]
[1738944855577,21.9,196.86,196.84,0.03]
[1738944855974,21.9,196.86,196.84,5.1102]
[1738944856383,21.9,196.86,196.84,0.03]
[1738944858081,21.9,196.88,196.84,0.03]
[1738944858691,21.9,196.9,196.84,0.03]
[1738944859389,21.9,196.95,196.89,60.25954999]
[1738944859573,21.9,196.98,196.92,40.25954999]
[1738944860194,21.9,196.98,196.94,40.25954999]
[1738944860489,21.93,197.0,196.96,40.25954999]
[1738944860697,21.93,197.0,196.93,40.25954999]
[1738944860876,40.25954999,196.99,196.91,40.25954999]
[1738944861076,40.25954999,196.97,196.92,20.0]
[1738944861277,21.9,196.96,196.95,3.77293118]
[1738944861464,75.57139852,196.96,196.95,3.77293118]
[1738944861968,53.79688852,196.96,196.95,3.77293118]
[1738944862168,53.92237852,196.96,196.95,3.77293118]
[1738944862392,54.92237852,196.96,196.95,2.10633118]
[1738944862570,0.12549,196.91,196.84,0.03]
[1738944862768,40.25954999,196.85,196.84,0.03]
[1738944863671,53.67139852,196.85,196.84,0.03]
[1738944863976,53.92237852,196.85,196.84,0.03]
[1738944864166,54.87539216,196.85,196.84,0.03]
[1738944864363,61.35109216,196.85,196.84,0.03]
[1738944864583,108.69064215,196.85,196.84,0.03]
[1738944864790,53.67139852,196.82,196.81,0.063]
[1738944864992,40.25954999,196.82,196.81,0.063]
[1738944865864,40.25954999,196.84,196.81,0.063]
[1738944866298,40.25954999,196.82,196.81,0.063]
[1738944866774,41.21231447,196.83,196.81,0.063]
[1738944867095,40.25954999,196.83,196.81,0.063]
[1738944867977,121.55954999,196.84,196.81,0.063]
[1738944868184,40.25954999,196.86,196.81,0.063]
[1738944868387,40.25954999,196.87,196.81,0.063]
[1738944868567,40.25954999,196.86,196.81,0.063]
[1738944868774,81.3,196.85,196.81,0.063]
[1738944869175,40.25954999,196.83,196.81,0.063]
[1738944869521,81.3,196.84,196.81,0.063]
[1738944869998,40.25954999,196.89,196.82,40.25954999]
[1738944870172,40.25954999,196.93,196.85,40.25954999]
[1738944870377,21.9,196.92,196.88,40.25954999]
[1738944870696,21.9,196.92,196.89,24.75574667]
[1738944871008,24.75574667,196.95,196.88,24.75574667]
[1738944871177,24.75574667,196.9,196.84,5.0802]
[1738944871379,46.65574667,196.89,196.84,5.0802]
[1738944872384,21.9,196.88,196.81,0.063]
[1738944872704,24.75574667,196.82,196.81,0.063]
[1738944873584,86.3797,196.87,196.81,0.063]
[1738944873585,24.75574667,196.85,196.81,0.063]
[1738944873775,106.05574667,196.87,196.81,0.063]
[1738944873976,46.65574667,196.86,196.81,0.063]
[1738944874288,21.9,196.85,196.81,0.063]
[1738944874590,21.9,196.87,196.84,24.75574667]
[1738944874794,21.9,196.87,196.81,24.81874667]
[1738944875105,24.75574667,196.83,196.81,0.063]
[1738944875297,22.8525811,196.86,196.81,0.063]
[1738944875298,21.9,196.82,196.81,0.063]
[1738944875980,21.9,196.89,196.84,20.0]
[1738944876300,21.9,196.92,196.87,24.75574667]
[1738944876487,21.9,196.92,196.86,24.75574667]
[1738944876683,21.9,196.92,196.87,5.0794]
[1738944877408,46.65574667,196.92,196.87,5.0794]
[1738944877576,21.9,196.92,196.88,24.75574667]
[1738944878488,21.9,196.92,196.89,24.75574667]
[1738944878699,21.9,196.92,196.91,5.0784]
[1738944879199,21.9,196.92,196.87,40.22812714]
[1738944879406,21.9,196.91,196.86,40.22812714]
[1738944879610,21.9,196.9,196.82,5.0807]
[1738944879778,40.22812714,196.87,196.82,5.0807]
[1738944879985,40.22812714,196.85,196.81,0.063]